Workbook

Sheet Stochasticka sit
A1: Vstupní data | I1: Význam symbolů | W1: Rozdělení pravděpodobnosti trvání činností - trojúhelníkové
A2: i | B2: j | C2: aij | D2: bij | E2: cij | F2: r | G2: xij | I2: i - počáteční uzel činnosti
A3: 1 | B3: 2 | C3: 2 | D3: 6 | E3: 2.5 | F3: 0.3538865447 | G3: =IF(C3=0,0,IF(F3<=(E3-C3)/(D3-C3),C3+SQRT(F3*(D3-C3)*(E3-C3)),D3-SQRT((1-F3)*(D3-C3)*(D3-E3)))) -> 2.992411535 | I3: j - konečný uzel činnosti
A4: 1 | B4: 3 | C4: 1 | D4: 5 | E4: 1.5 | F4: 0.2336705923 | G4: =IF(C4=0,0,IF(F4<=(E4-C4)/(D4-C4),C4+SQRT(F4*(D4-C4)*(E4-C4)),D4-SQRT((1-F4)*(D4-C4)*(D4-E4)))) -> 1.724544046 | I4: aij - optimistický odhad trvání činnosti [dny]
A5: 2 | B5: 3 | C5: 0 | D5: 0 | E5: 0 | F5: 0.2929878831 | G5: 0 | I5: bij - pesimistický odhad trvání činnosti [dny]
A6: 2 | B6: 4 | C6: 5 | D6: 17 | E6: 6.5 | F6: 0.45652771 | G6: 8.724886191 | I6: cij - odhad nejpravděpodobnějšího trvání činnosti [dny]
A7: 2 | B7: 5 | C7: 3.5 | D7: 4.5 | E7: 4 | F7: 0.6289331317 | G7: 4.069264078 | I7: r - náhodné číslo (0,1)
A8: 2 | B8: 6 | C8: 3 | D8: 9 | E8: 4.5 | F8: 0.06014215946 | G8: 3.735716953 | I8: xij - trvání činnosti [dny]
A9: 2 | B9: 7 | C9: 7 | D9: 17 | E9: 9 | F9: 0.1087391973 | G9: 8.474714869 | I9: PT - plánovaný termín dokončení projektu [dny]
A10: 3 | B10: 6 | C10: 0.5 | D10: 1.5 | E10: 1 | F10: 0.3737757206 | G10: 0.932305286
A11: 4 | B11: 5 | C11: 0 | D11: 0 | E11: 0 | F11: 0.03368324041 | G11: 0 | I11: Síť | W11: Inverzní transformace
A12: 5 | B12: 8 | C12: 0 | D12: 0 | E12: 0 | F12: 0.6264094114 | G12: 0
A13: 5 | B13: 9 | C13: 3.5 | D13: 8.5 | E13: 4.5 | F13: 0.318384707 | G13: 4.807804737
A14: 6 | B14: 7 | C14: 5 | D14: 9 | E14: 7 | F14: 0.2694973946 | G14: 6.46832529
A15: 6 | B15: 8 | C15: 7 | D15: 15 | E15: 9.5 | F15: 0.02254360914 | G15: 7.671470165
A16: 7 | B16: 9 | C16: 4.5 | D16: 11.5 | E16: 5 | F16: 0.8817521334 | G16: 9.180457387
A17: 8 | B17: 9 | C17: 4.5 | D17: 9.5 | E17: 5.5 | F17: 0.1365850568 | G17: 5.326392936
A18: 9 | B18: 10 | C18: 10 | D18: 24 | E18: 14 | F18: 0.3122107983 | G18: 14.18722831
A19: 10 | B19: 11 | C19: 0 | D19: 0 | E19: 0 | F19: 0.6524600387 | G19: 0
A20: 10 | B20: 12 | C20: 2.5 | D20: 7.5 | E20: 3.5 | F20: 0.9678329229 | G20: 6.697914256
A21: 11 | B21: 12 | C21: 1 | D21: 3 | E21: 2 | F21: 0.2008524537 | G21: 1.633801947
A22: 12 | B22: 13 | C22: 1 | D22: 3 | E22: 2 | F22: 0.4018793106 | G22: 1.896525862
A24: Cesta, délka cesty, kritická cesta
A25: Č.cesty | B25: Uzly ležící na cestě | F25: Délka cesty[dny]/Iterace | G25: 1 | H25: 2 | I25: 3 | J25: 4 | K25: 5 | L25: 6 | M25: 7 | N25: 8 | O25: 9 | P25: 10 | Q25: 11 | R25: 12 | S25: 13 | T25: 14 | U25: 15 | V25: 16 | W25: 17 | X25: 18 | Y25: 19 | Z25: 20 | AA25: 21 | AB25: 22 | AC25: 23 | AD25: 24 | AE25: 25 | AF25: 26 | AG25: 27 | AH25: 28 | AI25: 29 | AJ25: 30 | AK25: 31 | AL25: 32 | AM25: 33 | AN25: 34 | AO25: 35 | AP25: 36 | AQ25: 37 | AR25: 38 | AS25: 39 | AT25: 40 | AU25: 41 | AV25: 42 | AW25: 43 | AX25: 44 | AY25: 45 | AZ25: 46 | BA25: 47 | BB25: 48 | BC25: 49 | BD25: 50 | BE25: 51 | BF25: 52 | BG25: 53 | BH25: 54 | BI25: 55 | BJ25: 56 | BK25: 57 | BL25: 58 | BM25: 59 | BN25: 60 | BO25: 61 | BP25: 62 | BQ25: 63 | BR25: 64 | BS25: 65 | BT25: 66 | BU25: 67 | BV25: 68 | BW25: 69 | BX25: 70 | BY25: 71 | BZ25: 72 | CA25: 73 | CB25: 74 | CC25: 75 | CD25: 76 | CE25: 77 | CF25: 78 | CG25: 79 | CH25: 80 | CI25: 81 | CJ25: 82 | CK25: 83 | CL25: 84 | CM25: 85 | CN25: 86 | CO25: 87 | CP25: 88 | CQ25: 89 | CR25: 90 | CS25: 91 | CT25: 92 | CU25: 93 | CV25: 94 | CW25: 95 | CX25: 96 | CY25: 97 | CZ25: 98 | DA25: 99 | DB25: 100
A26: 1 | B26: 1,3,6,8,9,10,12,13 | F26: =G4+G10+G15+G17+G18+G20+G22 -> 38.43638086 | G26: 38.65050264 | H26: 43.77490559 | I26: 39.69391303 | J26: 42.1175407 | K26: 40.87386958 | L26: 40.5812736 | M26: 39.83818953 | N26: 40.22527864 | O26: 50.29768517 | P26: 42.10340629 | Q26: 43.2524697 | R26: 44.62428068 | S26: 47.72613462 | T26: 47.9857792 | U26: 40.91882542 | V26: 41.88716767 | W26: 39.4244045 | X26: 41.98775445 | Y26: 46.16708814 | Z26: 42.12693355 | AA26: 32.56375301 | AB26: 48.97627797 | AC26: 44.07431865 | AD26: 48.69083688 | AE26: 44.03177313 | AF26: 47.3998006 | AG26: 41.59737371 | AH26: 42.51893568 | AI26: 41.13762888 | AJ26: 42.22941926 | AK26: 35.25327136 | AL26: 40.71303548 | AM26: 40.33482031 | AN26: 41.51147697 | AO26: 37.46181603 | AP26: 41.08785206 | AQ26: 43.40138023 | AR26: 42.50345578 | AS26: 43.52174224 | AT26: 45.43094349 | AU26: 49.86317264 | AV26: 49.11154972 | AW26: 44.6175313 | AX26: 47.97753084 | AY26: 42.78376123 | AZ26: 41.48214697 | BA26: 44.95132316 | BB26: 35.47657265 | BC26: 40.13011421 | BD26: 41.90657312 | BE26: 40.46911166 | BF26: 46.43594515 | BG26: 40.95770273 | BH26: 40.5108337 | BI26: 41.65134828 | BJ26: 46.72356257 | BK26: 41.53637167 | BL26: 42.55805232 | BM26: 40.47089923 | BN26: 34.70249658 | BO26: 38.87116293 | BP26: 42.11024422 | BQ26: 43.46990039 | BR26: 37.04093853 | BS26: 39.26756345 | BT26: 43.64564856 | BU26: 46.87699204 | BV26: 35.08984396 | BW26: 35.25440163 | BX26: 45.87255141 | BY26: 39.10227702 | BZ26: 46.45149032 | CA26: 45.74181404 | CB26: 37.66352856 | CC26: 38.38027045 | CD26: 36.09364898 | CE26: 42.6857814 | CF26: 42.266069 | CG26: 45.00378161 | CH26: 35.36515094 | CI26: 46.44553444 | CJ26: 40.02690029 | CK26: 40.63157617 | CL26: 46.25118201 | CM26: 42.40429765 | CN26: 40.76157808 | CO26: 46.53886728 | CP26: 40.8528017 | CQ26: 45.47908345 | CR26: 42.75410613 | CS26: 43.71589701 | CT26: 40.98363562 | CU26: 40.01223004 | CV26: 47.52964974 | CW26: 37.69417402 | CX26: 44.82777575 | CY26: 44.18697661 | CZ26: 47.80949983 | DA26: 44.7384884 | DB26: 38.43638086
A27: 2 | B27: 1,3,6,8,9,10,11,12,13 | F27: =G4+G10+G15+G17+G18+G19+G21+G22 -> 33.37226855 | G27: 36.86435892 | H27: 41.34354761 | I27: 38.79943846 | J27: 40.620901 | K27: 39.45999617 | L27: 40.72251563 | M27: 37.46503531 | N27: 38.47011053 | O27: 49.52306055 | P27: 40.11664707 | Q27: 39.93210932 | R27: 42.49507018 | S27: 45.81363482 | T27: 45.42093346 | U27: 36.3369587 | V27: 39.75621048 | W27: 38.06438298 | X27: 40.9493086 | Y27: 43.20058551 | Z27: 38.97845905 | AA27: 30.86801716 | AB27: 44.65265371 | AC27: 41.06203823 | AD27: 44.99491136 | AE27: 42.14800904 | AF27: 44.89884429 | AG27: 38.32807797 | AH27: 38.71976621 | AI27: 36.83500296 | AJ27: 40.59119816 | AK27: 33.42702248 | AL27: 39.2601539 | AM27: 37.33650483 | AN27: 40.38914113 | AO27: 34.67110433 | AP27: 37.85062647 | AQ27: 41.49815928 | AR27: 39.97590322 | AS27: 40.16656298 | AT27: 42.98783603 | AU27: 45.09066049 | AV27: 47.71685089 | AW27: 40.32191393 | AX27: 46.1326324 | AY27: 40.82628906 | AZ27: 38.1605108 | BA27: 42.86464695 | BB27: 32.15187584 | BC27: 38.45064803 | BD27: 39.2447437 | BE27: 38.4744019 | BF27: 44.21327866 | BG27: 39.54435198 | BH27: 36.68614401 | BI27: 39.04419815 | BJ27: 42.40215806 | BK27: 38.74175511 | BL27: 40.48781999 | BM27: 38.04583693 | BN27: 32.15275537 | BO27: 35.01893234 | BP27: 40.81392054 | BQ27: 40.83311622 | BR27: 34.54830657 | BS27: 37.44792278 | BT27: 43.21270533 | BU27: 41.81934912 | BV27: 34.34663252 | BW27: 33.54968158 | BX27: 43.15820451 | BY27: 34.78995636 | BZ27: 43.29613484 | CA27: 42.07207408 | CB27: 35.60936614 | CC27: 35.69090799 | CD27: 34.62907679 | CE27: 38.89076893 | CF27: 39.64851134 | CG27: 40.25575103 | CH27: 33.36172093 | CI27: 41.91312394 | CJ27: 37.79209749 | CK27: 36.81448187 | CL27: 43.57297668 | CM27: 40.3794425 | CN27: 38.75397554 | CO27: 44.69354289 | CP27: 36.32261708 | CQ27: 43.38730883 | CR27: 39.20263252 | CS27: 41.94497413 | CT27: 39.02068409 | CU27: 36.21203249 | CV27: 44.73763765 | CW27: 35.43640431 | CX27: 42.5473013 | CY27: 43.38172548 | CZ27: 43.5530108 | DA27: 43.11403029 | DB27: 33.37226855
A28: 3 | B28: 1,3,6,7,9,10,12,13 | F28: =G4+G10+G14+G16+G18+G20+G22 -> 41.08730044 | G28: 36.32248872 | H28: 40.9682586 | I28: 37.92102414 | J28: 38.1824084 | K28: 39.95851939 | L28: 36.85987845 | M28: 34.49939027 | N28: 37.35225143 | O28: 44.3098886 | P28: 38.614885 | Q28: 38.70801654 | R28: 41.77671486 | S28: 45.38317017 | T28: 40.44186836 | U28: 40.29823365 | V28: 36.31921311 | W28: 37.72450284 | X28: 41.45593193 | Y28: 41.45090988 | Z28: 40.81603171 | AA28: 33.4515227 | AB28: 44.43975951 | AC28: 43.89813829 | AD28: 44.9741614 | AE28: 42.34461721 | AF28: 38.82688748 | AG28: 40.07586375 | AH28: 42.28483417 | AI28: 39.04031654 | AJ28: 45.23323411 | AK28: 32.5483587 | AL28: 35.06966642 | AM28: 37.89327037 | AN28: 37.62837761 | AO28: 34.94474954 | AP28: 39.39898194 | AQ28: 41.2911493 | AR28: 38.08457562 | AS28: 44.87291254 | AT28: 43.48830137 | AU28: 40.75263641 | AV28: 38.98510622 | AW28: 38.17245215 | AX28: 45.00402046 | AY28: 40.42047579 | AZ28: 36.21108624 | BA28: 44.36313258 | BB28: 33.37942712 | BC28: 38.90487331 | BD28: 38.11458203 | BE28: 38.13497041 | BF28: 44.27431984 | BG28: 38.71279266 | BH28: 37.28107238 | BI28: 35.14310614 | BJ28: 42.885659 | BK28: 38.83791998 | BL28: 36.1524441 | BM28: 41.92101367 | BN28: 39.47720099 | BO28: 38.29217435 | BP28: 37.8296738 | BQ28: 41.67122153 | BR28: 37.99614483 | BS28: 37.09544678 | BT28: 36.6146541 | BU28: 44.20247642 | BV28: 35.98106954 | BW28: 33.2482413 | BX28: 41.41033679 | BY28: 38.19631862 | BZ28: 43.85689442 | CA28: 43.6956253 | CB28: 36.23549384 | CC28: 38.68242716 | CD28: 33.21537758 | CE28: 39.06368452 | CF28: 36.30137637 | CG28: 38.21041256 | CH28: 33.74330868 | CI28: 44.62980056 | CJ28: 41.7280549 | CK28: 35.81471984 | CL28: 46.01896287 | CM28: 39.20576842 | CN28: 40.20642215 | CO28: 43.45791198 | CP28: 42.91282215 | CQ28: 40.56791977 | CR28: 38.37859762 | CS28: 42.90108503 | CT28: 35.24695385 | CU28: 38.53056056 | CV28: 41.53007224 | CW28: 37.56070139 | CX28: 40.69911923 | CY28: 40.80331412 | CZ28: 41.75788958 | DA28: 35.34522404 | DB28: 41.08730044
A29: 4 | B29: 1,3,6,7,9,10,11,12,13 | F29: =G4+G10+G14+G16+G18+G19+G21+G22 -> 36.02318813 | G29: 34.536345 | H29: 38.53690062 | I29: 37.02654957 | J29: 36.6857687 | K29: 38.54464598 | L29: 37.00112047 | M29: 32.12623605 | N29: 35.59708332 | O29: 43.53526398 | P29: 36.62812578 | Q29: 35.38765617 | R29: 39.64750437 | S29: 43.47067036 | T29: 37.87702262 | U29: 35.71636694 | V29: 34.18825593 | W29: 36.36448133 | X29: 40.41748608 | Y29: 38.48440725 | Z29: 37.6675572 | AA29: 31.75578684 | AB29: 40.11613524 | AC29: 40.88585787 | AD29: 41.27823587 | AE29: 40.46085312 | AF29: 36.32593116 | AG29: 36.80656801 | AH29: 38.4856647 | AI29: 34.73769063 | AJ29: 43.59501302 | AK29: 30.72210982 | AL29: 33.61678484 | AM29: 34.89495489 | AN29: 36.50604177 | AO29: 32.15403785 | AP29: 36.16175635 | AQ29: 39.38792836 | AR29: 35.55702306 | AS29: 41.51773328 | AT29: 41.04519391 | AU29: 35.98012425 | AV29: 37.59040739 | AW29: 33.87683479 | AX29: 43.15912201 | AY29: 38.46300362 | AZ29: 32.88945007 | BA29: 42.27645636 | BB29: 30.05473031 | BC29: 37.22540712 | BD29: 35.45275261 | BE29: 36.14026065 | BF29: 42.05165336 | BG29: 37.29944191 | BH29: 33.4563827 | BI29: 32.53595601 | BJ29: 38.56425449 | BK29: 36.04330342 | BL29: 34.08221176 | BM29: 39.49595138 | BN29: 36.92745978 | BO29: 34.43994376 | BP29: 36.53335012 | BQ29: 39.03443736 | BR29: 35.50351286 | BS29: 35.27580611 | BT29: 36.18171087 | BU29: 39.14483349 | BV29: 35.2378581 | BW29: 31.54352124 | BX29: 38.69598989 | BY29: 33.88399796 | BZ29: 40.70153894 | CA29: 40.02588534 | CB29: 34.18133143 | CC29: 35.99306471 | CD29: 31.7508054 | CE29: 35.26867205 | CF29: 33.68381871 | CG29: 33.46238197 | CH29: 31.73987866 | CI29: 40.09739005 | CJ29: 39.49325211 | CK29: 31.99762554 | CL29: 43.34075754 | CM29: 37.18091327 | CN29: 38.19881961 | CO29: 41.6125876 | CP29: 38.38263752 | CQ29: 38.47614514 | CR29: 34.82712401 | CS29: 41.13016214 | CT29: 33.28400232 | CU29: 34.73036301 | CV29: 38.73806016 | CW29: 35.30293167 | CX29: 38.41864478 | CY29: 39.998063 | CZ29: 37.50140056 | DA29: 33.72076594 | DB29: 36.02318813
A30: 5 | B30: 1,2,7,9,10,12,13 | F30: =G3+G9+G16+G18+G20+G22 -> 43.42925222 | G30: 35.65268723 | H30: 47.46590176 | I30: 47.46211504 | J30: 42.65122436 | K30: 45.88245152 | L30: 42.39820417 | M30: 38.82966804 | N30: 37.53723736 | O30: 44.77782444 | P30: 39.02800501 | Q30: 44.22350724 | R30: 45.71660593 | S30: 46.10370411 | T30: 41.32049308 | U30: 41.57050595 | V30: 47.19649524 | W30: 46.25784766 | X30: 40.4717308 | Y30: 46.66605834 | Z30: 41.53110193 | AA30: 34.6739469 | AB30: 51.16515949 | AC30: 48.62280323 | AD30: 47.31390233 | AE30: 45.84902785 | AF30: 42.80303554 | AG30: 42.55994628 | AH30: 46.82977201 | AI30: 43.55238948 | AJ30: 47.82058056 | AK30: 40.95737291 | AL30: 39.88031761 | AM30: 44.43545741 | AN30: 41.10156364 | AO30: 45.04097468 | AP30: 43.25998851 | AQ30: 46.42398552 | AR30: 47.66047924 | AS30: 45.5973687 | AT30: 45.13173253 | AU30: 49.17457719 | AV30: 45.92113125 | AW30: 41.20671766 | AX30: 48.99949492 | AY30: 42.70438454 | AZ30: 40.66976499 | BA30: 48.65302212 | BB30: 37.32871858 | BC30: 39.79824824 | BD30: 42.34372495 | BE30: 38.18762721 | BF30: 50.55207594 | BG30: 39.71803409 | BH30: 41.08033835 | BI30: 36.65410888 | BJ30: 51.06669135 | BK30: 46.08033453 | BL30: 38.98433693 | BM30: 44.54141403 | BN30: 46.37219611 | BO30: 38.3577477 | BP30: 42.98612285 | BQ30: 45.08307929 | BR30: 45.52517926 | BS30: 44.08958714 | BT30: 36.55387744 | BU30: 47.88951238 | BV30: 42.78420017 | BW30: 39.04542202 | BX30: 46.09984129 | BY30: 38.38519308 | BZ30: 47.80092798 | CA30: 46.6526291 | CB30: 39.05757748 | CC30: 42.43905945 | CD30: 36.37675294 | CE30: 45.09126701 | CF30: 41.72982792 | CG30: 41.06549659 | CH30: 34.36726798 | CI30: 45.10285722 | CJ30: 42.75102415 | CK30: 39.47651974 | CL30: 50.76874039 | CM30: 43.36087737 | CN30: 39.42082011 | CO30: 46.10305256 | CP30: 47.11316806 | CQ30: 39.45377336 | CR30: 42.46830707 | CS30: 49.59540267 | CT30: 38.98254134 | CU30: 42.32561691 | CV30: 50.46739121 | CW30: 41.9814094 | CX30: 46.16404667 | CY30: 41.46597476 | CZ30: 45.51453727 | DA30: 36.36250029 | DB30: 43.42925222
A31: 6 | B31: 1,2,7,9,10,11,12,13 | F31: =G3+G9+G16+G18+G19+G21+G22 -> 38.36513991 | G31: 33.86654352 | H31: 45.03454378 | I31: 46.56764047 | J31: 41.15458466 | K31: 44.46857811 | L31: 42.5394462 | M31: 36.45651382 | N31: 35.78206925 | O31: 44.00319983 | P31: 37.0412458 | Q31: 40.90314686 | R31: 43.58739544 | S31: 44.1912043 | T31: 38.75564735 | U31: 36.98863923 | V31: 45.06553806 | W31: 44.89782614 | X31: 39.43328495 | Y31: 43.69955571 | Z31: 38.38262743 | AA31: 32.97821105 | AB31: 46.84153523 | AC31: 45.61052281 | AD31: 43.6179768 | AE31: 43.96526376 | AF31: 40.30207923 | AG31: 39.29065054 | AH31: 43.03060254 | AI31: 39.24976356 | AJ31: 46.18235946 | AK31: 39.13112404 | AL31: 38.42743602 | AM31: 41.43714194 | AN31: 39.97922779 | AO31: 42.25026299 | AP31: 40.02276291 | AQ31: 44.52076457 | AR31: 45.13292668 | AS31: 42.24218944 | AT31: 42.68862507 | AU31: 44.40206503 | AV31: 44.52643242 | AW31: 36.91110029 | AX31: 47.15459647 | AY31: 40.74691237 | AZ31: 37.34812882 | BA31: 46.5663459 | BB31: 34.00402177 | BC31: 38.11878206 | BD31: 39.68189553 | BE31: 36.19291745 | BF31: 48.32940946 | BG31: 38.30468334 | BH31: 37.25564866 | BI31: 34.04695876 | BJ31: 46.74528683 | BK31: 43.28571797 | BL31: 36.91410459 | BM31: 42.11635174 | BN31: 43.82245489 | BO31: 34.50551712 | BP31: 41.68979917 | BQ31: 42.44629512 | BR31: 43.03254729 | BS31: 42.26994647 | BT31: 36.12093421 | BU31: 42.83186945 | BV31: 42.04098873 | BW31: 37.34070196 | BX31: 43.38549439 | BY31: 34.07287243 | BZ31: 44.64557251 | CA31: 42.98288914 | CB31: 37.00341507 | CC31: 39.74969699 | CD31: 34.91218076 | CE31: 41.29625454 | CF31: 39.11227026 | CG31: 36.31746601 | CH31: 32.36383796 | CI31: 40.57044672 | CJ31: 40.51622136 | CK31: 35.65942544 | CL31: 48.09053506 | CM31: 41.33602222 | CN31: 37.41321757 | CO31: 44.25772817 | CP31: 42.58298343 | CQ31: 37.36199873 | CR31: 38.91683346 | CS31: 47.82447978 | CT31: 37.01958981 | CU31: 38.52541936 | CV31: 47.67537913 | CW31: 39.72363968 | CX31: 43.88357222 | CY31: 40.66072363 | CZ31: 41.25804825 | DA31: 34.73804218 | DB31: 38.36513991
A32: 7 | B32: 1,2,6,8,9,10,12,13 | F32: =G3+G8+G15+G17+G18+G20+G22 -> 42.50766002 | G32: 41.89838982 | H32: 51.31658219 | I32: 49.37903907 | J32: 45.87121428 | K32: 47.72978637 | L32: 44.84042085 | M32: 41.7137156 | N32: 43.62725636 | O32: 53.55662956 | P32: 48.10516802 | Q32: 46.02183101 | R32: 49.44099324 | S32: 51.7288549 | T32: 55.75833857 | U32: 45.34958056 | V32: 45.97577458 | W32: 43.56113137 | X32: 46.07412299 | Y32: 51.75936208 | Z32: 48.47068451 | AA32: 36.06424725 | AB32: 55.90551288 | AC32: 48.4017686 | AD32: 53.17114539 | AE32: 47.91595701 | AF32: 53.67031358 | AG32: 50.18849386 | AH32: 46.55057336 | AI32: 45.43703797 | AJ32: 47.46798523 | AK32: 42.78039656 | AL32: 45.57880036 | AM32: 47.1167151 | AN32: 47.12126301 | AO32: 46.45364749 | AP32: 44.47587297 | AQ32: 49.44441174 | AR32: 51.27991683 | AS32: 49.38197209 | AT32: 52.34388572 | AU32: 57.33748583 | AV32: 56.49876716 | AW32: 51.76774366 | AX32: 52.41316128 | AY32: 47.3357435 | AZ32: 46.51438041 | BA32: 51.29631843 | BB32: 42.09699579 | BC32: 44.39864584 | BD32: 47.58105199 | BE32: 44.29768429 | BF32: 49.11812316 | BG32: 47.31509184 | BH32: 47.43047055 | BI32: 44.77834099 | BJ32: 51.97289452 | BK32: 45.85208111 | BL32: 49.02127002 | BM32: 45.79753143 | BN32: 39.20239174 | BO32: 45.02440821 | BP32: 47.35826511 | BQ32: 51.46379638 | BR32: 41.958544 | BS32: 42.8371369 | BT32: 46.46844324 | BU32: 54.45867357 | BV32: 39.3751853 | BW32: 42.48324173 | BX32: 50.57894999 | BY32: 44.16368742 | BZ32: 52.385018 | CA32: 51.29597394 | CB32: 42.59027723 | CC32: 47.33631938 | CD32: 39.89819933 | CE32: 45.26361886 | CF32: 45.87676814 | CG32: 49.3843625 | CH32: 39.93478746 | CI32: 47.71933565 | CJ32: 43.51307572 | CK32: 46.36153998 | CL32: 53.43759516 | CM32: 46.59080147 | CN32: 45.5981425 | CO32: 50.50626531 | CP32: 49.82174318 | CQ32: 49.52666687 | CR32: 49.86022973 | CS32: 50.20887483 | CT32: 45.3971936 | CU32: 44.36990849 | CV32: 54.53816015 | CW32: 44.56980161 | CX32: 50.20613903 | CY32: 50.26907066 | CZ32: 52.89763467 | DA32: 47.19618616 | DB32: 42.50766002
A33: 8 | B33: 1,2,6,8,9,10,11,12,13 | F33: =G3+G8+G15+G17+G18+G19+G21+G22 -> 37.44354771 | G33: 40.11224611 | H33: 48.8852242 | I33: 48.4845645 | J33: 44.37457458 | K33: 46.31591296 | L33: 44.98166288 | M33: 39.34056137 | N33: 41.87208825 | O33: 52.78200494 | P33: 46.1184088 | Q33: 42.70147063 | R33: 47.31178274 | S33: 49.8163551 | T33: 53.19349284 | U33: 40.76771385 | V33: 43.84481739 | W33: 42.20110985 | X33: 45.03567714 | Y33: 48.79285945 | Z33: 45.32221 | AA33: 34.3685114 | AB33: 51.58188861 | AC33: 45.38948818 | AD33: 49.47521986 | AE33: 46.03219292 | AF33: 51.16935726 | AG33: 46.91919812 | AH33: 42.75140389 | AI33: 41.13441205 | AJ33: 45.82976413 | AK33: 40.95414769 | AL33: 44.12591878 | AM33: 44.11839963 | AN33: 45.99892717 | AO33: 43.6629358 | AP33: 41.23864738 | AQ33: 47.54119079 | AR33: 48.75236426 | AS33: 46.02679283 | AT33: 49.90077827 | AU33: 52.56497367 | AV33: 55.10406833 | AW33: 47.47212629 | AX33: 50.56826284 | AY33: 45.37827133 | AZ33: 43.19274424 | BA33: 49.20964222 | BB33: 38.77229898 | BC33: 42.71917966 | BD33: 44.91922257 | BE33: 42.30297453 | BF33: 46.89545667 | BG33: 45.90174108 | BH33: 43.60578086 | BI33: 42.17119086 | BJ33: 47.65149 | BK33: 43.05746455 | BL33: 46.95103768 | BM33: 43.37246914 | BN33: 36.65265052 | BO33: 41.17217763 | BP33: 46.06194142 | BQ33: 48.82701221 | BR33: 39.46591203 | BS33: 41.01749623 | BT33: 46.03550001 | BU33: 49.40103065 | BV33: 38.63197386 | BW33: 40.77852168 | BX33: 47.86460309 | BY33: 39.85136677 | BZ33: 49.22966252 | CA33: 47.62623399 | CB33: 40.53611482 | CC33: 44.64695692 | CD33: 38.43362715 | CE33: 41.4686064 | CF33: 43.25921048 | CG33: 44.63633191 | CH33: 37.93135744 | CI33: 43.18692515 | CJ33: 41.27827293 | CK33: 42.54444568 | CL33: 50.75938983 | CM33: 44.56594632 | CN33: 43.59053996 | CO33: 48.66094093 | CP33: 45.29155855 | CQ33: 47.43489224 | CR33: 46.30875612 | CS33: 48.43795195 | CT33: 43.43424207 | CU33: 40.56971094 | CV33: 51.74614807 | CW33: 42.31203189 | CX33: 47.92566458 | CY33: 49.46381953 | CZ33: 48.64114564 | DA33: 45.57172806 | DB33: 37.44354771
A34: 9 | B34: 1,2,6,7,9,10,12,13 | F34: =G3+G8+G14+G16+G18+G20+G22 -> 45.15857959 | G34: 39.5703759 | H34: 48.5099352 | I34: 47.60615018 | J34: 41.93608198 | K34: 46.81443618 | L34: 41.1190257 | M34: 36.37491634 | N34: 40.75422915 | O34: 47.56883299 | P34: 44.61664673 | Q34: 41.47737786 | R34: 46.59342742 | S34: 49.38589044 | T34: 48.21442773 | U34: 44.72898879 | V34: 40.40782002 | W34: 41.86122971 | X34: 45.54230046 | Y34: 47.04318381 | Z34: 47.15978266 | AA34: 36.95201694 | AB34: 51.36899441 | AC34: 48.22558824 | AD34: 49.4544699 | AE34: 46.22880109 | AF34: 45.09740046 | AG34: 48.6669839 | AH34: 46.31647185 | AI34: 43.33972564 | AJ34: 50.47180008 | AK34: 40.0754839 | AL34: 39.9354313 | AM34: 44.67516516 | AN34: 43.23816365 | AO34: 43.93658101 | AP34: 42.78700285 | AQ34: 47.33418081 | AR34: 46.86103667 | AS34: 50.73314238 | AT34: 50.40124361 | AU34: 48.22694959 | AV34: 46.37232365 | AW34: 45.32266451 | AX34: 49.43965089 | AY34: 44.97245806 | AZ34: 41.24331969 | BA34: 50.70812784 | BB34: 39.99985027 | BC34: 43.17340494 | BD34: 43.7890609 | BE34: 41.96354304 | BF34: 46.95649785 | BG34: 45.07018177 | BH34: 44.20070924 | BI34: 38.27009885 | BJ34: 48.13499094 | BK34: 43.15362942 | BL34: 42.61566179 | BM34: 47.24764588 | BN34: 43.97709615 | BO34: 44.44541963 | BP34: 43.07769468 | BQ34: 49.66511753 | BR34: 42.9137503 | BS34: 40.66502023 | BT34: 39.43744878 | BU34: 51.78415795 | BV34: 40.26641088 | BW34: 40.4770814 | BX34: 46.11673537 | BY34: 43.25772902 | BZ34: 49.7904221 | CA34: 49.2497852 | CB34: 41.16224252 | CC34: 47.63847609 | CD34: 37.01992793 | CE34: 41.64152199 | CF34: 39.9120755 | CG34: 42.59099344 | CH34: 38.31294519 | CI34: 45.90360177 | CJ34: 45.21423033 | CK34: 41.54468364 | CL34: 53.20537602 | CM34: 43.39227224 | CN34: 45.04298657 | CO34: 47.42531002 | CP34: 51.88176363 | CQ34: 44.61550319 | CR34: 45.48472122 | CS34: 49.39406284 | CT34: 39.66051183 | CU34: 42.88823901 | CV34: 48.53858265 | CW34: 44.43632897 | CX34: 46.0774825 | CY34: 46.88540817 | CZ34: 46.84602442 | DA34: 37.80292181 | DB34: 45.15857959
A35: 10 | B35: 1,2,6,7,9,10,11,12,13 | F35: =G3+G8+G14+G16+G18+G19+G21+G22 -> 40.09446728 | G35: 37.78423218 | H35: 46.07857721 | I35: 46.71167561 | J35: 40.43944228 | K35: 45.40056277 | L35: 41.26026772 | M35: 34.00176211 | N35: 38.99906104 | O35: 46.79420837 | P35: 42.62988751 | Q35: 38.15701748 | R35: 44.46421692 | S35: 47.47339064 | T35: 45.649582 | U35: 40.14712208 | V35: 38.27686283 | W35: 40.50120819 | X35: 44.50385461 | Y35: 44.07668119 | Z35: 44.01130816 | AA35: 35.25628108 | AB35: 47.04537015 | AC35: 45.21330782 | AD35: 45.75854437 | AE35: 44.345037 | AF35: 42.59644414 | AG35: 45.39768816 | AH35: 42.51730238 | AI35: 39.03709972 | AJ35: 48.83357899 | AK35: 38.24923503 | AL35: 38.48254972 | AM35: 41.67684969 | AN35: 42.11582781 | AO35: 41.14586932 | AP35: 39.54977726 | AQ35: 45.43095987 | AR35: 44.33348411 | AS35: 47.37796312 | AT35: 47.95813615 | AU35: 43.45443743 | AV35: 44.97762483 | AW35: 41.02704715 | AX35: 47.59475245 | AY35: 43.01498589 | AZ35: 37.92168352 | BA35: 48.62145163 | BB35: 36.67515346 | BC35: 41.49393875 | BD35: 41.12723148 | BE35: 39.96883328 | BF35: 44.73383137 | BG35: 43.65683101 | BH35: 40.37601955 | BI35: 35.66294872 | BJ35: 43.81358643 | BK35: 40.35901286 | BL35: 40.54542945 | BM35: 44.82258359 | BN35: 41.42735494 | BO35: 40.59318905 | BP35: 41.781371 | BQ35: 47.02833336 | BR35: 40.42111833 | BS35: 38.84537956 | BT35: 39.00450556 | BU35: 46.72651502 | BV35: 39.52319944 | BW35: 38.77236134 | BX35: 43.40238847 | BY35: 38.94540837 | BZ35: 46.63506663 | CA35: 45.58004524 | CB35: 39.10808011 | CC35: 44.94911364 | CD35: 35.55535575 | CE35: 37.84650952 | CF35: 37.29451785 | CG35: 37.84296286 | CH35: 36.30951518 | CI35: 41.37119127 | CJ35: 42.97942754 | CK35: 37.72758935 | CL35: 50.52717069 | CM35: 41.36741709 | CN35: 43.03538402 | CO35: 45.57998564 | CP35: 47.351579 | CQ35: 42.52372856 | CR35: 41.93324761 | CS35: 47.62313996 | CT35: 37.6975603 | CU35: 39.08804146 | CV35: 45.74657057 | CW35: 42.17855926 | CX35: 43.79700805 | CY35: 46.08015705 | CZ35: 42.58953539 | DA35: 36.1784637 | DB35: 40.09446728
A36: 11 | B36: 1,2,5,9,10,12,13 | F36: =G3+G7+G13+G18+G20+G22 -> 34.65114878 | G36: 30.45518672 | H36: 34.46146164 | I36: 35.22598611 | J36: 35.38997615 | K36: 33.1449749 | L36: 35.65234472 | M36: 29.76135921 | N36: 30.02788978 | O36: 37.608785 | P36: 35.37593174 | Q36: 35.22726536 | R36: 35.58441164 | S36: 37.53950963 | T36: 34.81335888 | U36: 36.66779002 | V36: 31.05705524 | W36: 33.57962938 | X36: 32.27831692 | Y36: 37.67222484 | Z36: 38.05663233 | AA36: 26.05136046 | AB36: 41.95334709 | AC36: 40.88464561 | AD36: 42.52760868 | AE36: 40.41302487 | AF36: 40.14253909 | AG36: 36.32775961 | AH36: 38.71565627 | AI36: 33.59259068 | AJ36: 35.93540225 | AK36: 31.3186486 | AL36: 33.90312954 | AM36: 36.1164035 | AN36: 34.93999833 | AO36: 33.25965525 | AP36: 34.17937744 | AQ36: 40.21318756 | AR36: 34.71428824 | AS36: 37.20797812 | AT36: 38.37475366 | AU36: 38.12821782 | AV36: 39.78853623 | AW36: 37.30264428 | AX36: 41.94547373 | AY36: 35.05401022 | AZ36: 33.9831782 | BA36: 34.95725691 | BB36: 29.7208482 | BC36: 35.46951917 | BD36: 35.05427799 | BE36: 32.69309521 | BF36: 41.03103553 | BG36: 34.20422436 | BH36: 36.839327 | BI36: 30.17898812 | BJ36: 40.84351935 | BK36: 32.022552 | BL36: 32.44104159 | BM36: 36.75897254 | BN36: 28.75947353 | BO36: 32.56695712 | BP36: 35.82689102 | BQ36: 40.57391205 | BR36: 35.55263481 | BS36: 33.1603964 | BT36: 32.67093375 | BU36: 38.87082247 | BV36: 31.34528966 | BW36: 29.89684314 | BX36: 40.42376667 | BY36: 32.3713974 | BZ36: 41.69805422 | CA36: 38.74203739 | CB36: 33.12064359 | CC36: 39.06326467 | CD36: 30.17495863 | CE36: 35.87105 | CF36: 36.26425672 | CG36: 36.35060756 | CH36: 29.77772622 | CI36: 36.08998947 | CJ36: 32.72568426 | CK36: 36.28214859 | CL36: 42.30673485 | CM36: 37.44778581 | CN36: 32.87026546 | CO36: 35.88348892 | CP36: 37.66518072 | CQ36: 35.00115537 | CR36: 36.44368376 | CS36: 35.12863732 | CT36: 31.1251302 | CU36: 33.67629135 | CV36: 37.00372905 | CW36: 31.98697702 | CX36: 39.97136596 | CY36: 32.56322401 | CZ36: 39.30842941 | DA36: 29.3612888 | DB36: 34.65114878
A37: 12 | B37: 1,2,5,9,10,11,12,13 | F37: =G3+G7+G13+G18+G19+G21+G22 -> 29.58703647 | G37: 28.669043 | H37: 32.03010365 | I37: 34.33151155 | J37: 33.89333645 | K37: 31.73110149 | L37: 35.79358674 | M37: 27.38820499 | N37: 28.27272167 | O37: 36.83416038 | P37: 33.38917252 | Q37: 31.90690498 | R37: 33.45520114 | S37: 35.62700983 | T37: 32.24851315 | U37: 32.0859233 | V37: 28.92609805 | W37: 32.21960786 | X37: 31.23987107 | Y37: 34.70572221 | Z37: 34.90815783 | AA37: 24.3556246 | AB37: 37.62972282 | AC37: 37.87236519 | AD37: 38.83168315 | AE37: 38.52926077 | AF37: 37.64158277 | AG37: 33.05846387 | AH37: 34.9164868 | AI37: 29.28996477 | AJ37: 34.29718115 | AK37: 29.49239972 | AL37: 32.45024795 | AM37: 33.11808803 | AN37: 33.81766249 | AO37: 30.46894356 | AP37: 30.94215185 | AQ37: 38.30996662 | AR37: 32.18673567 | AS37: 33.85279886 | AT37: 35.93164621 | AU37: 33.35570566 | AV37: 38.3938374 | AW37: 33.00702691 | AX37: 40.10057528 | AY37: 33.09653805 | AZ37: 30.66154203 | BA37: 32.87058069 | BB37: 26.39615139 | BC37: 33.79005299 | BD37: 32.39244857 | BE37: 30.69838545 | BF37: 38.80836905 | BG37: 32.7908736 | BH37: 33.01463731 | BI37: 27.571838 | BJ37: 36.52211483 | BK37: 29.22793544 | BL37: 30.37080925 | BM37: 34.33391025 | BN37: 26.20973232 | BO37: 28.71472653 | BP37: 34.53056733 | BQ37: 37.93712788 | BR37: 33.06000284 | BS37: 31.34075573 | BT37: 32.23799052 | BU37: 33.81317954 | BV37: 30.60207822 | BW37: 28.19212308 | BX37: 37.70941976 | BY37: 28.05907674 | BZ37: 38.54269875 | CA37: 35.07229744 | CB37: 31.06648118 | CC37: 36.37390222 | CD37: 28.71038645 | CE37: 32.07603753 | CF37: 33.64669906 | CG37: 31.60257697 | CH37: 27.77429621 | CI37: 31.55757897 | CJ37: 30.49088147 | CK37: 32.4650543 | CL37: 39.62852952 | CM37: 35.42293066 | CN37: 30.86266291 | CO37: 34.03816454 | CP37: 33.13499609 | CQ37: 32.90938075 | CR37: 32.89221015 | CS37: 33.35771444 | CT37: 29.16217867 | CU37: 29.8760938 | CV37: 34.21171697 | CW37: 29.7292073 | CX37: 37.69089151 | CY37: 31.75797289 | CZ37: 35.05194038 | DA37: 27.7368307 | DB37: 29.58703647
A38: 13 | B38: 1,2,5,8,9,10,12,13 | F38: =G3+G7+G12+G17+G18+G20+G22 -> 35.16973698 | G38: 32.96738249 | H38: 35.60616849 | I38: 35.65682301 | J38: 36.64816086 | K38: 33.22336399 | L38: 33.15574695 | M38: 32.642061 | N38: 32.27919386 | O38: 39.62708097 | P38: 36.36700271 | Q38: 36.89793849 | R38: 39.07863852 | S38: 37.84391041 | T38: 39.00011616 | U38: 36.17312648 | V38: 31.8786891 | W38: 35.10777608 | X38: 33.65799458 | Y38: 36.71919219 | Z38: 37.97340777 | AA38: 28.56507517 | AB38: 42.76323967 | AC38: 40.51659914 | AD38: 41.74374061 | AE38: 37.19481638 | AF38: 39.79363014 | AG38: 33.99600994 | AH38: 37.51572258 | AI38: 35.17594419 | AJ38: 36.68280011 | AK38: 31.46110683 | AL38: 33.67730706 | AM38: 34.72938131 | AN38: 38.22803115 | AO38: 33.74382875 | AP38: 34.19733773 | AQ38: 39.89714766 | AR38: 36.68734815 | AS38: 37.6292284 | AT38: 38.52230783 | AU38: 40.23542948 | AV38: 42.05684306 | AW38: 38.24916906 | AX38: 44.71688544 | AY38: 35.92583412 | AZ38: 33.93559917 | BA38: 38.0730341 | BB38: 32.28547838 | BC38: 35.24196511 | BD38: 35.70469053 | BE38: 33.99435796 | BF38: 40.53010613 | BG38: 35.02583337 | BH38: 35.10407327 | BI38: 33.71472275 | BJ38: 42.06721647 | BK38: 32.86806874 | BL38: 33.99411842 | BM38: 36.72235567 | BN38: 30.37015532 | BO38: 33.61544981 | BP38: 36.32853512 | BQ38: 39.37210605 | BR38: 34.10740341 | BS38: 32.66500461 | BT38: 32.19278779 | BU38: 40.50748015 | BV38: 30.78066996 | BW38: 33.43447158 | BX38: 40.925886 | BY38: 34.33701469 | BZ38: 41.13719307 | CA38: 38.98728215 | CB38: 33.47994339 | CC38: 37.14700759 | CD38: 28.58515076 | CE38: 34.91047544 | CF38: 35.54924361 | CG38: 37.29932239 | CH38: 31.33714043 | CI38: 39.14610283 | CJ38: 33.7418001 | CK38: 33.93007292 | CL38: 41.70040595 | CM38: 37.2101913 | CN38: 33.77153993 | CO38: 36.46106354 | CP38: 38.50133587 | CQ38: 36.54004567 | CR38: 36.90587127 | CS38: 34.70383981 | CT38: 33.81404863 | CU38: 35.1302791 | CV38: 38.34469025 | CW38: 31.16095202 | CX38: 38.01714929 | CY38: 33.70547283 | CZ38: 39.94582122 | DA38: 33.54174378 | DB38: 35.16973698
A39: 14 | B39: 1,2,5,8,9,10,11,12,13 | F39: =G3+G7+G12+G17+G18+G19+G21+G22 -> 30.10562467 | G39: 31.18123878 | H39: 33.17481051 | I39: 34.76234844 | J39: 35.15152116 | K39: 31.80949058 | L39: 33.29698898 | M39: 30.26890678 | N39: 30.52402575 | O39: 38.85245635 | P39: 34.38024349 | Q39: 33.57757812 | R39: 36.94942802 | S39: 35.9314106 | T39: 36.43527043 | U39: 31.59125977 | V39: 29.74773192 | W39: 33.74775456 | X39: 32.61954873 | Y39: 33.75268957 | Z39: 34.82493327 | AA39: 26.86933932 | AB39: 38.43961541 | AC39: 37.50431872 | AD39: 38.04781508 | AE39: 35.31105229 | AF39: 37.29267382 | AG39: 30.7267142 | AH39: 33.71655311 | AI39: 30.87331828 | AJ39: 35.04457902 | AK39: 29.63485795 | AL39: 32.22442547 | AM39: 31.73106584 | AN39: 37.10569531 | AO39: 30.95311706 | AP39: 30.96011214 | AQ39: 37.99392672 | AR39: 34.15979559 | AS39: 34.27404914 | AT39: 36.07920038 | AU39: 35.46291733 | AV39: 40.66214423 | AW39: 33.95355169 | AX39: 42.87198699 | AY39: 33.96836195 | AZ39: 30.613963 | BA39: 35.98635788 | BB39: 28.96078157 | BC39: 33.56249892 | BD39: 33.04286111 | BE39: 31.9996482 | BF39: 38.30743965 | BG39: 33.61248261 | BH39: 31.27938359 | BI39: 31.10757263 | BJ39: 37.74581195 | BK39: 30.07345218 | BL39: 31.92388608 | BM39: 34.29729338 | BN39: 27.82041411 | BO39: 29.76321922 | BP39: 35.03221143 | BQ39: 36.73532188 | BR39: 31.61477145 | BS39: 30.84536394 | BT39: 31.75984457 | BU39: 35.44983722 | BV39: 30.03745852 | BW39: 31.72975153 | BX39: 38.2115391 | BY39: 30.02469404 | BZ39: 37.98183759 | CA39: 35.3175422 | CB39: 31.42578098 | CC39: 34.45764513 | CD39: 27.12057858 | CE39: 31.11546297 | CF39: 32.93168595 | CG39: 32.55129181 | CH39: 29.33371041 | CI39: 34.61369232 | CJ39: 31.50699731 | CK39: 30.11297863 | CL39: 39.02220062 | CM39: 35.18533615 | CN39: 31.76393739 | CO39: 34.61573916 | CP39: 33.97115124 | CQ39: 34.44827105 | CR39: 33.35439766 | CS39: 32.93291693 | CT39: 31.8510971 | CU39: 31.33008155 | CV39: 35.55267817 | CW39: 28.9031823 | CX39: 35.73667484 | CY39: 32.9002217 | CZ39: 35.68933219 | DA39: 31.91728567 | DB39: 30.10562467
A40: 15 | B40: 1,2,4,5,9,10,12,13 | F40: =G3+G6+G11+G13+G18+G20+G22 -> 39.30677089 | G40: 33.15524966 | H40: 40.86016735 | I40: 41.40025121 | J40: 44.0890333 | K40: 40.37585586 | L40: 42.5594002 | M40: 33.44450508 | N40: 31.95333135 | O40: 44.65459391 | P40: 37.61952704 | Q40: 43.17785968 | R40: 37.87314299 | S40: 44.25939222 | T40: 41.50967641 | U40: 38.84076471 | V40: 35.55334179 | W40: 36.77868657 | X40: 36.72724543 | Y40: 44.34490034 | Z40: 45.28544932 | AA40: 30.67270375 | AB40: 49.30680287 | AC40: 43.29190636 | AD40: 52.72683228 | AE40: 45.60850093 | AF40: 42.87567633 | AG40: 39.88234522 | AH40: 41.72784385 | AI40: 34.87247781 | AJ40: 40.59645954 | AK40: 34.80051015 | AL40: 45.51675169 | AM40: 42.03695533 | AN40: 40.55628793 | AO40: 37.85326624 | AP40: 44.27257707 | AQ40: 43.65301518 | AR40: 36.13865966 | AS40: 41.35530786 | AT40: 49.27379819 | AU40: 41.71302969 | AV40: 42.9863942 | AW40: 39.6186046 | AX40: 45.47141602 | AY40: 37.47836913 | AZ40: 45.9104991 | BA40: 40.55462088 | BB40: 32.75920987 | BC40: 41.13316017 | BD40: 39.47851454 | BE40: 35.32042547 | BF40: 47.38698611 | BG40: 39.02371942 | BH40: 43.85282935 | BI40: 34.76860298 | BJ40: 44.45328393 | BK40: 35.01837577 | BL40: 37.79323894 | BM40: 41.47824872 | BN40: 33.59111101 | BO40: 35.65644842 | BP40: 42.09839775 | BQ40: 43.2697047 | BR40: 40.87719862 | BS40: 36.59495654 | BT40: 34.36881376 | BU40: 40.16132014 | BV40: 34.16268606 | BW40: 33.19622491 | BX40: 42.86328583 | BY40: 37.57070519 | BZ40: 45.13992951 | CA40: 44.22706416 | CB40: 37.24724882 | CC40: 45.65910831 | CD40: 32.34631783 | CE40: 41.21070427 | CF40: 41.70617378 | CG40: 41.21280748 | CH40: 40.65816742 | CI40: 37.50105384 | CJ40: 41.29226638 | CK40: 40.25333297 | CL40: 48.55198556 | CM40: 47.48721166 | CN40: 37.44740369 | CO40: 45.36696274 | CP40: 39.60818306 | CQ40: 40.66721479 | CR40: 45.89831211 | CS40: 45.26425567 | CT40: 34.97309363 | CU40: 37.74221672 | CV40: 39.04773078 | CW40: 38.36321001 | CX40: 49.73522981 | CY40: 34.67930033 | CZ40: 50.75200115 | DA40: 33.73769327 | DB40: 39.30677089
A41: 16 | B41: 1,2,4,5,9,10,11,12,13 | F41: =G3+G6+G11+G13+G18+G19+G21+G22 -> 34.24265858 | G41: 31.36910595 | H41: 38.42880936 | I41: 40.50577664 | J41: 42.5923936 | K41: 38.96198245 | L41: 42.70064223 | M41: 31.07135086 | N41: 30.19816323 | O41: 43.87996929 | P41: 35.63276782 | Q41: 39.8574993 | R41: 35.7439325 | S41: 42.34689241 | T41: 38.94483067 | U41: 34.25889799 | V41: 33.4223846 | W41: 35.41866506 | X41: 35.68879958 | Y41: 41.37839771 | Z41: 42.13697482 | AA41: 28.9769679 | AB41: 44.98317861 | AC41: 40.27962594 | AD41: 49.03090675 | AE41: 43.72473683 | AF41: 40.37472001 | AG41: 36.61304948 | AH41: 37.92867438 | AI41: 30.56985189 | AJ41: 38.95823844 | AK41: 32.97426127 | AL41: 44.0638701 | AM41: 39.03863986 | AN41: 39.43395209 | AO41: 35.06255454 | AP41: 41.03535148 | AQ41: 41.74979424 | AR41: 33.6111071 | AS41: 38.0001286 | AT41: 46.83069074 | AU41: 36.94051753 | AV41: 41.59169538 | AW41: 35.32298723 | AX41: 43.62651758 | AY41: 35.52089696 | AZ41: 42.58886293 | BA41: 38.46794467 | BB41: 29.43451306 | BC41: 39.45369399 | BD41: 36.81668512 | BE41: 33.32571571 | BF41: 45.16431963 | BG41: 37.61036866 | BH41: 40.02813966 | BI41: 32.16145285 | BJ41: 40.13187941 | BK41: 32.22375921 | BL41: 35.7230066 | BM41: 39.05318643 | BN41: 31.0413698 | BO41: 31.80421784 | BP41: 40.80207406 | BQ41: 40.63292054 | BR41: 38.38456665 | BS41: 34.77531587 | BT41: 33.93587053 | BU41: 35.10367721 | BV41: 33.41947462 | BW41: 31.49150485 | BX41: 40.14893893 | BY41: 33.25838454 | BZ41: 41.98457404 | CA41: 40.5573242 | CB41: 35.19308641 | CC41: 42.96974586 | CD41: 30.88174565 | CE41: 37.4156918 | CF41: 39.08861613 | CG41: 36.46477689 | CH41: 38.65473741 | CI41: 32.96864334 | CJ41: 39.05746359 | CK41: 36.43623868 | CL41: 45.87378023 | CM41: 45.46235651 | CN41: 35.43980115 | CO41: 43.52163835 | CP41: 35.07799844 | CQ41: 38.57544017 | CR41: 42.3468385 | CS41: 43.49333278 | CT41: 33.0101421 | CU41: 33.94201918 | CV41: 36.2557187 | CW41: 36.10544029 | CX41: 47.45475536 | CY41: 33.8740492 | CZ41: 46.49551212 | DA41: 32.11323517 | DB41: 34.24265858
A42: 17 | B42: 1,2,4,5,8,9,10,12,13 | F42: =G3+G6+G11+G12+G17+G18+G20+G22 -> 39.82535909 | G42: 35.66744544 | H42: 42.0048742 | I42: 41.83108811 | J42: 45.34721801 | K42: 40.45424495 | L42: 40.06280244 | M42: 36.32520687 | N42: 34.20463543 | O42: 46.67288988 | P42: 38.61059801 | Q42: 44.84853281 | R42: 41.36736988 | S42: 44.563793 | T42: 45.69643369 | U42: 38.34610117 | V42: 36.37497566 | W42: 38.30683328 | X42: 38.10692309 | Y42: 43.39186769 | Z42: 45.20222476 | AA42: 33.18641846 | AB42: 50.11669546 | AC42: 42.92385989 | AD42: 51.94296421 | AE42: 42.39029244 | AF42: 42.52676737 | AG42: 37.55059555 | AH42: 40.52791016 | AI42: 36.45583132 | AJ42: 41.3438574 | AK42: 34.94296838 | AL42: 45.29092921 | AM42: 40.64993314 | AN42: 43.84432074 | AO42: 38.33743973 | AP42: 44.29053737 | AQ42: 43.33697529 | AR42: 38.11171957 | AS42: 41.77655815 | AT42: 49.42135236 | AU42: 43.82024135 | AV42: 45.25470104 | AW42: 40.56512938 | AX42: 48.24282773 | AY42: 38.35019302 | AZ42: 45.86292007 | BA42: 43.67039807 | BB42: 35.32384005 | BC42: 40.90560611 | BD42: 40.12892708 | BE42: 36.62168822 | BF42: 46.88605671 | BG42: 39.84532844 | BH42: 42.11757562 | BI42: 38.30433761 | BJ42: 45.67698105 | BK42: 35.86389251 | BL42: 39.34631577 | BM42: 41.44163186 | BN42: 35.20179279 | BO42: 36.70494111 | BP42: 42.60004185 | BQ42: 42.0678987 | BR42: 39.43196722 | BS42: 36.09956475 | BT42: 33.89066781 | BU42: 41.79797782 | BV42: 33.59806636 | BW42: 36.73385336 | BX42: 43.36540516 | BY42: 39.53632249 | BZ42: 44.57906835 | CA42: 44.47230892 | CB42: 37.60654863 | CC42: 43.74285123 | CD42: 30.75650995 | CE42: 40.25012971 | CF42: 40.99116067 | CG42: 42.16152231 | CH42: 42.21758163 | CI42: 40.5571672 | CJ42: 42.30838222 | CK42: 37.9012573 | CL42: 47.94565666 | CM42: 47.24961715 | CN42: 38.34867817 | CO42: 45.94453736 | CP42: 40.44433821 | CQ42: 42.20610509 | CR42: 46.36049962 | CS42: 44.83945816 | CT42: 37.66201205 | CU42: 39.19620447 | CV42: 40.38869198 | CW42: 37.537185 | CX42: 47.78101314 | CY42: 35.82154914 | CZ42: 51.38939296 | DA42: 37.91814825 | DB42: 39.82535909
A43: 18 | B43: 1,2,4,5,8,9,10,11,12,13 | F43: =G3+G6+G11+G12+G17+G18+G19+G21+G22 -> 34.76124678 | G43: 33.88130172 | H43: 39.57351621 | I43: 40.93661354 | J43: 43.85057831 | K43: 39.04037154 | L43: 40.20404446 | M43: 33.95205265 | N43: 32.44946732 | O43: 45.89826526 | P43: 36.62383879 | Q43: 41.52817243 | R43: 39.23815938 | S43: 42.65129319 | T43: 43.13158795 | U43: 33.76423446 | V43: 34.24401847 | W43: 36.94681176 | X43: 37.06847723 | Y43: 40.42536507 | Z43: 42.05375026 | AA43: 31.49068261 | AB43: 45.79307119 | AC43: 39.91157947 | AD43: 48.24703868 | AE43: 40.50652835 | AF43: 40.02581106 | AG43: 34.28129981 | AH43: 36.72874069 | AI43: 32.15320541 | AJ43: 39.7056363 | AK43: 33.1167195 | AL43: 43.83804762 | AM43: 37.65161766 | AN43: 42.7219849 | AO43: 35.54672804 | AP43: 41.05331177 | AQ43: 41.43375434 | AR43: 35.58416701 | AS43: 38.42137889 | AT43: 46.9782449 | AU43: 39.0477292 | AV43: 43.86000221 | AW43: 36.26951201 | AX43: 46.39792929 | AY43: 36.39272085 | AZ43: 42.5412839 | BA43: 41.58372186 | BB43: 31.99914324 | BC43: 39.22613992 | BD43: 37.46709765 | BE43: 34.62697846 | BF43: 44.66339023 | BG43: 38.43197768 | BH43: 38.29288593 | BI43: 35.69718748 | BJ43: 41.35557653 | BK43: 33.06927595 | BL43: 37.27608343 | BM43: 39.01656956 | BN43: 32.65205158 | BO43: 32.85271053 | BP43: 41.30371816 | BQ43: 39.43111453 | BR43: 36.93933525 | BS43: 34.27992408 | BT43: 33.45772458 | BU43: 36.74033489 | BV43: 32.85485492 | BW43: 35.0291333 | BX43: 40.65105826 | BY43: 35.22400183 | BZ43: 41.42371288 | CA43: 40.80256896 | CB43: 35.55238622 | CC43: 41.05348877 | CD43: 29.29193777 | CE43: 36.45511724 | CF43: 38.37360301 | CG43: 37.41349173 | CH43: 40.21415161 | CI43: 36.0247567 | CJ43: 40.07357943 | CK43: 34.08416301 | CL43: 45.26745133 | CM43: 45.22476201 | CN43: 36.34107563 | CO43: 44.09921297 | CP43: 35.91415359 | CQ43: 40.11433047 | CR43: 42.80902601 | CS43: 43.06853528 | CT43: 35.69906052 | CU43: 35.39600692 | CV43: 37.5966799 | CW43: 35.27941529 | CX43: 45.50053869 | CY43: 35.01629801 | CZ43: 47.13290393 | DA43: 36.29369014 | DB43: 34.76124678
A44: 19 | B44: 1,2,3,6,8,9,10,12,13 | F44: =G3+G5+G10+G15+G17+G18+G20+G22 -> 39.70424835 | G44: 38.18130792 | H44: 44.70978471 | I44: 42.61337707 | J44: 43.30648137 | K44: 41.81983573 | L44: 42.17316976 | M44: 39.28887778 | N44: 40.533418 | O44: 49.8597462 | P44: 42.91713618 | Q44: 42.5940573 | R44: 46.07427558 | S44: 48.12581807 | T44: 49.38747298 | U44: 42.07738057 | V44: 43.08087175 | W44: 40.1955287 | X44: 42.64895989 | Y44: 46.56067599 | Z44: 43.47279623 | AA44: 32.89365957 | AB44: 51.35968476 | AC44: 45.69128242 | AD44: 48.84120563 | AE44: 45.38848621 | AF44: 48.96261329 | AG44: 43.41771507 | AH44: 43.54387027 | AI44: 41.56170733 | AJ44: 42.66078639 | AK44: 38.86737495 | AL44: 42.09967788 | AM44: 41.43292636 | AN44: 44.30895762 | AO44: 40.64270029 | AP44: 42.12801332 | AQ44: 45.66034897 | AR44: 45.92095194 | AS44: 44.28855497 | AT44: 46.73875536 | AU44: 50.59027759 | AV44: 52.19638363 | AW44: 46.9436576 | AX44: 49.47566522 | AY44: 44.87273324 | AZ44: 41.9221404 | BA44: 45.68572949 | BB44: 36.21826542 | BC44: 40.4028852 | BD44: 42.97951252 | BE44: 39.9909137 | BF44: 46.79033347 | BG44: 41.9222552 | BH44: 41.6869827 | BI44: 42.08266003 | BJ44: 49.33960223 | BK44: 42.17545766 | BL44: 44.25815689 | BM44: 41.41451682 | BN44: 35.21264587 | BO44: 40.55075618 | BP44: 44.48480753 | BQ44: 46.11020915 | BR44: 39.00699289 | BS44: 40.78906915 | BT44: 41.60905033 | BU44: 47.91742155 | BV44: 37.07869662 | BW44: 37.73721394 | BX44: 47.62956264 | BY44: 39.14536413 | BZ44: 47.41427316 | CA44: 46.63007208 | CB44: 38.86938353 | CC44: 41.40070427 | CD44: 35.95044512 | CE44: 42.68028817 | CF44: 42.13207184 | CG44: 45.49911271 | CH44: 36.5189477 | CI44: 45.45338565 | CJ44: 41.11763154 | CK44: 42.52942099 | CL44: 49.70956251 | CM44: 42.99433418 | CN44: 40.3955435 | CO44: 45.76107805 | CP44: 44.1319288 | CQ44: 44.36382536 | CR44: 44.89119669 | CS44: 44.27083538 | CT44: 41.8312019 | CU44: 41.79766306 | CV44: 48.94899366 | CW44: 37.88573435 | CX44: 44.78442473 | CY44: 45.25447145 | CZ44: 47.81454568 | DA44: 44.1690398 | DB44: 39.70424835
A45: 20 | B45: 1,2,3,6,8,9,10,11,12,13 | F45: =G3+G5+G10+G15+G17+G18+G19+G21+G22 -> 34.64013604 | G45: 36.3951642 | H45: 42.27842673 | I45: 41.7189025 | J45: 41.80984167 | K45: 40.40596232 | L45: 42.31441179 | M45: 36.91572356 | N45: 38.77824989 | O45: 49.08512158 | P45: 40.93037696 | Q45: 39.27369692 | R45: 43.94506508 | S45: 46.21331826 | T45: 46.82262724 | U45: 37.49551385 | V45: 40.94991456 | W45: 38.83550719 | X45: 41.61051404 | Y45: 43.59417337 | Z45: 40.32432173 | AA45: 31.19792372 | AB45: 47.0360605 | AC45: 42.67900201 | AD45: 45.1452801 | AE45: 43.50472212 | AF45: 46.46165698 | AG45: 40.14841933 | AH45: 39.7447008 | AI45: 37.25908142 | AJ45: 41.02256529 | AK45: 37.04112607 | AL45: 40.64679629 | AM45: 38.43461089 | AN45: 43.18662177 | AO45: 37.8519886 | AP45: 38.89078773 | AQ45: 43.75712802 | AR45: 43.39339938 | AS45: 40.93337571 | AT45: 44.2956479 | AU45: 45.81776543 | AV45: 50.8016848 | AW45: 42.64804023 | AX45: 47.63076678 | AY45: 42.91526108 | AZ45: 38.60050423 | BA45: 43.59905327 | BB45: 32.89356861 | BC45: 38.72341902 | BD45: 40.3176831 | BE45: 37.99620394 | BF45: 44.56766699 | BG45: 40.50890445 | BH45: 37.86229301 | BI45: 39.4755099 | BJ45: 45.01819771 | BK45: 39.3808411 | BL45: 42.18792455 | BM45: 38.98945453 | BN45: 32.66290466 | BO45: 36.6985256 | BP45: 43.18848385 | BQ45: 43.47342498 | BR45: 36.51436092 | BS45: 38.96942848 | BT45: 41.1761071 | BU45: 42.85977862 | BV45: 36.33548518 | BW45: 36.03249388 | BX45: 44.91521574 | BY45: 34.83304348 | BZ45: 44.25891769 | CA45: 42.96033212 | CB45: 36.81522112 | CC45: 38.71134182 | CD45: 34.48587294 | CE45: 38.8852757 | CF45: 39.51451418 | CG45: 40.75108212 | CH45: 34.51551769 | CI45: 40.92097514 | CJ45: 38.88282875 | CK45: 38.7123267 | CL45: 47.03135718 | CM45: 40.96947903 | CN45: 38.38794095 | CO45: 43.91575366 | CP45: 39.60174417 | CQ45: 42.27205074 | CR45: 41.33972307 | CS45: 42.49991249 | CT45: 39.86825037 | CU45: 37.99746551 | CV45: 46.15698158 | CW45: 35.62796464 | CX45: 42.50395028 | CY45: 44.44922032 | CZ45: 43.55805666 | DA45: 42.54458169 | DB45: 34.64013604
A46: 21 | B46: 1,2,3,6,7,9,10,12,13 | F46: =G3+G5+G10+G14+G16+G18+G20+G22 -> 42.35516793 | G46: 35.853294 | H46: 41.90313773 | I46: 40.84048818 | J46: 39.37134907 | K46: 40.90448554 | L46: 38.45177461 | M46: 33.95007852 | N46: 37.66039079 | O46: 43.87194963 | P46: 39.42861489 | Q46: 38.04960414 | R46: 43.22670976 | S46: 45.78285361 | T46: 41.84356214 | U46: 41.4567888 | V46: 37.51291719 | W46: 38.49562705 | X46: 42.11713736 | Y46: 41.84449773 | Z46: 42.16189439 | AA46: 33.78142926 | AB46: 46.8231663 | AC46: 45.51510207 | AD46: 45.12453015 | AE46: 43.70133029 | AF46: 40.38970017 | AG46: 41.8962051 | AH46: 43.30976876 | AI46: 39.464395 | AJ46: 45.66460124 | AK46: 36.16246229 | AL46: 36.45630881 | AM46: 38.99137642 | AN46: 40.42585826 | AO46: 38.12563381 | AP46: 40.4391432 | AQ46: 43.55011804 | AR46: 41.50207178 | AS46: 45.63972527 | AT46: 44.79611324 | AU46: 41.47974136 | AV46: 42.06994012 | AW46: 40.49857845 | AX46: 46.50215483 | AY46: 42.50944781 | AZ46: 36.65107967 | BA46: 45.0975389 | BB46: 34.1211199 | BC46: 39.1776443 | BD46: 39.18752143 | BE46: 37.65677245 | BF46: 44.62870817 | BG46: 39.67734513 | BH46: 38.45722139 | BI46: 35.57441789 | BJ46: 45.50169865 | BK46: 39.47700597 | BL46: 37.85254866 | BM46: 42.86463127 | BN46: 39.98735029 | BO46: 39.9717676 | BP46: 40.20423711 | BQ46: 44.31153029 | BR46: 39.96219918 | BS46: 38.61695248 | BT46: 34.57805588 | BU46: 45.24290592 | BV46: 37.9699222 | BW46: 35.7310536 | BX46: 43.16734803 | BY46: 38.23940573 | BZ46: 44.81967726 | CA46: 44.58388333 | CB46: 37.44134882 | CC46: 41.70286099 | CD46: 33.07217372 | CE46: 39.05819129 | CF46: 36.16737921 | CG46: 38.70574365 | CH46: 34.89710544 | CI46: 43.63765176 | CJ46: 42.81878615 | CK46: 37.71256466 | CL46: 49.47734337 | CM46: 39.79580495 | CN46: 39.84038756 | CO46: 42.68012275 | CP46: 46.19194925 | CQ46: 39.45266168 | CR46: 40.51568818 | CS46: 43.45602339 | CT46: 36.09452013 | CU46: 40.31599358 | CV46: 42.94941616 | CW46: 37.75226172 | CX46: 40.6557682 | CY46: 41.87080897 | CZ46: 41.76293544 | DA46: 34.77577544 | DB46: 42.35516793
A47: 22 | B47: 1,2,3,6,7,9,10,11,12,13 | F47: =G3+G5+G10+G14+G16+G18+G19+G21+G22 -> 37.29105562 | G47: 34.06715028 | H47: 39.47177974 | I47: 39.94601361 | J47: 37.87470937 | K47: 39.49061213 | L47: 38.59301663 | M47: 31.5769243 | N47: 35.90522268 | O47: 43.09732501 | P47: 37.44185567 | Q47: 34.72924377 | R47: 41.09749926 | S47: 43.8703538 | T47: 39.2787164 | U47: 36.87492209 | V47: 35.38196 | W47: 37.13560553 | X47: 41.07869151 | Y47: 38.87799511 | Z47: 39.01341988 | AA47: 32.0856934 | AB47: 42.49954203 | AC47: 42.50282165 | AD47: 41.42860462 | AE47: 41.8175662 | AF47: 37.88874385 | AG47: 38.62690936 | AH47: 39.51059929 | AI47: 35.16176909 | AJ47: 44.02638014 | AK47: 34.33621341 | AL47: 35.00342723 | AM47: 35.99306095 | AN47: 39.30352242 | AO47: 35.33492211 | AP47: 37.20191761 | AQ47: 41.6468971 | AR47: 38.97451922 | AS47: 42.28454601 | AT47: 42.35300579 | AU47: 36.7072292 | AV47: 40.6752413 | AW47: 36.20296108 | AX47: 44.65725639 | AY47: 40.55197564 | AZ47: 33.3294435 | BA47: 43.01086268 | BB47: 30.79642309 | BC47: 37.49817811 | BD47: 36.52569201 | BE47: 35.66206269 | BF47: 42.40604169 | BG47: 38.26399437 | BH47: 34.6325317 | BI47: 32.96726776 | BJ47: 41.18029414 | BK47: 36.68238941 | BL47: 35.78231632 | BM47: 40.43956898 | BN47: 37.43760907 | BO47: 36.11953702 | BP47: 38.90791343 | BQ47: 41.67474612 | BR47: 37.46956721 | BS47: 36.79731181 | BT47: 34.14511265 | BU47: 40.185263 | BV47: 37.22671076 | BW47: 34.02633355 | BX47: 40.45300112 | BY47: 33.92708508 | BZ47: 41.66432179 | CA47: 40.91414338 | CB47: 35.38718641 | CC47: 39.01349853 | CD47: 31.60760154 | CE47: 35.26317883 | CF47: 33.54982155 | CG47: 33.95771307 | CH47: 32.89367543 | CI47: 39.10524126 | CJ47: 40.58398336 | CK47: 33.89547037 | CL47: 46.79913804 | CM47: 37.7709498 | CN47: 37.83278502 | CO47: 40.83479837 | CP47: 41.66176462 | CQ47: 37.36088706 | CR47: 36.96421456 | CS47: 41.68510051 | CT47: 34.1315686 | CU47: 36.51579603 | CV47: 40.15740408 | CW47: 35.494492 | CX47: 38.37529375 | CY47: 41.06555784 | CZ47: 37.50644641 | DA47: 33.15131734 | DB47: 37.29105562
F48: PT | G48: =MAX(G$26:G$47) -> 41.89838982 | H48: 51.31658219 | I48: 49.37903907 | J48: 45.87121428 | K48: 47.72978637 | L48: 44.98166288 | M48: 41.7137156 | N48: 43.62725636 | O48: 53.55662956 | P48: 48.10516802 | Q48: 46.02183101 | R48: 49.44099324 | S48: 51.7288549 | T48: 55.75833857 | U48: 45.34958056 | V48: 47.19649524 | W48: 46.25784766 | X48: 46.07412299 | Y48: 51.75936208 | Z48: 48.47068451 | AA48: 36.95201694 | AB48: 55.90551288 | AC48: 48.62280323 | AD48: 53.17114539 | AE48: 47.91595701 | AF48: 53.67031358 | AG48: 50.18849386 | AH48: 46.82977201 | AI48: 45.43703797 | AJ48: 50.47180008 | AK48: 42.78039656 | AL48: 45.57880036 | AM48: =MAX(AM$26:AM$47) -> 47.1167151 | AN48: 47.12126301 | AO48: 46.45364749 | AP48: 44.47587297 | AQ48: 49.44441174 | AR48: 51.27991683 | AS48: 50.73314238 | AT48: 52.34388572 | AU48: 57.33748583 | AV48: 56.49876716 | AW48: 51.76774366 | AX48: 52.41316128 | AY48: 47.3357435 | AZ48: 46.51438041 | BA48: 51.29631843 | BB48: 42.09699579 | BC48: 44.39864584 | BD48: 47.58105199 | BE48: 44.29768429 | BF48: 50.55207594 | BG48: 47.31509184 | BH48: 47.43047055 | BI48: 44.77834099 | BJ48: 51.97289452 | BK48: 46.08033453 | BL48: 49.02127002 | BM48: 47.24764588 | BN48: 46.37219611 | BO48: 45.02440821 | BP48: 47.35826511 | BQ48: 51.46379638 | BR48: 45.52517926 | BS48: =MAX(BS$26:BS$47) -> 44.08958714 | BT48: 46.46844324 | BU48: 54.45867357 | BV48: 42.78420017 | BW48: 42.48324173 | BX48: 50.57894999 | BY48: 44.16368742 | BZ48: 52.385018 | CA48: 51.29597394 | CB48: 42.59027723 | CC48: 47.63847609 | CD48: 39.89819933 | CE48: 45.26361886 | CF48: 45.87676814 | CG48: 49.3843625 | CH48: 42.21758163 | CI48: 47.71933565 | CJ48: 45.21423033 | CK48: 46.36153998 | CL48: 53.43759516 | CM48: 47.48721166 | CN48: 45.5981425 | CO48: 50.50626531 | CP48: 51.88176363 | CQ48: 49.52666687 | CR48: 49.86022973 | CS48: 50.20887483 | CT48: 45.3971936 | CU48: 44.36990849 | CV48: 54.53816015 | CW48: 44.56980161 | CX48: 50.20613903 | CY48: 50.26907066 | CZ48: 52.89763467 | DA48: 47.19618616 | DB48: 45.15857959
F49: Č.cesty | G49: 7 | H49: 7 | I49: 7 | J49: 7 | K49: 7 | L49: 8 | M49: 7 | N49: 7 | O49: 7 | P49: 7 | Q49: 7 | R49: 7 | S49: 7 | T49: 7 | U49: 7 | V49: 5 | W49: 5 | X49: 7 | Y49: 7 | Z49: 7 | AA49: 9 | AB49: 7 | AC49: 5 | AD49: 7 | AE49: 7 | AF49: 7 | AG49: 7 | AH49: 5 | AI49: 7 | AJ49: 9 | AK49: 7 | AL49: 7 | AM49: 7 | AN49: 7 | AO49: 7 | AP49: 7 | AQ49: 7 | AR49: 7 | AS49: 9 | AT49: 7 | AU49: 7 | AV49: 7 | AW49: 7 | AX49: 7 | AY49: 7 | AZ49: 7 | BA49: 7 | BB49: 7 | BC49: 7 | BD49: 7 | BE49: 7 | BF49: 5 | BG49: 7 | BH49: 7 | BI49: 7 | BJ49: 7 | BK49: 5 | BL49: 7 | BM49: 9 | BN49: 5 | BO49: 7 | BP49: 7 | BQ49: 7 | BR49: 5 | BS49: 5 | BT49: 7 | BU49: 7 | BV49: 5 | BW49: 7 | BX49: 7 | BY49: 7 | BZ49: 7 | CA49: 7 | CB49: 7 | CC49: 9 | CD49: 7 | CE49: 7 | CF49: 7 | CG49: 7 | CH49: 17 | CI49: 7 | CJ49: 9 | CK49: 7 | CL49: 7 | CM49: 15 | CN49: 7 | CO49: 7 | CP49: 9 | CQ49: 7 | CR49: 7 | CS49: 7 | CT49: 7 | CU49: 7 | CV49: 7 | CW49: 7 | CX49: 7 | CY49: 7 | CZ49: 7 | DA49: 7 | DB49: 9
A51: Výstupy-kritická cesta | I51: Výstupy-%, že dodržím PT
A52: Č.cesty | B52: Uzly ležící na cestě | F52: Kolikrát kritická? | G52: % | I52: % | J52: PT
A53: 1 | B53: 1,3,6,8,9,10,12,13 | F53: =COUNTIF($G$49:$DB$49,A53) -> 0 | G53: =F53/SUM($F$53:$F$74) -> 0 | I53: 0.1 | J53: =PERCENTILE($G$48:$DB$48,I53) -> 43.54295074
A54: 2 | B54: 1,3,6,8,9,10,11,12,13 | F54: 0 | G54: =F54/SUM($F$53:$F$74) -> 0 | I54: 0.2 | J54: =PERCENTILE($G$48:$DB$48,I54) -> 45.01585915
A55: 3 | B55: 1,3,6,7,9,10,12,13 | F55: 0 | G55: 0 | I55: 0.3 | J55: 45.78929275
A56: 4 | B56: 1,3,6,7,9,10,11,12,13 | F56: 0 | G56: 0 | I56: 0.4 | J56: 46.49600554
A57: 5 | B57: 1,2,7,9,10,12,13 | F57: 10 | G57: 0.1 | I57: 0.5 | J57: 47.39436783
A58: 6 | B58: 1,2,7,9,10,11,12,13 | F58: 0 | G58: 0 | I58: 0.6 | J58: 48.78218995
A59: 7 | B59: 1,2,6,8,9,10,12,13 | F59: 79 | G59: 0.79 | I59: 0.7 | J59: 50.22693358
A60: 8 | B60: 1,2,6,8,9,10,11,12,13 | F60: 1 | G60: 0.01 | I60: 0.8 | J60: 51.34602503
A61: 9 | B61: 1,2,6,7,9,10,12,13 | F61: 8 | G61: 0.08 | I61: 0.9 | J61: 52.92498574
A62: 10 | B62: 1,2,6,7,9,10,11,12,13 | F62: 0 | G62: 0 | I62: 0.95 | J62: 54.4626479
A63: 11 | B63: 1,2,5,9,10,12,13 | F63: 0 | G63: 0 | I63: 1 | J63: 57.33748583
A64: 12 | B64: 1,2,5,9,10,11,12,13 | F64: 0 | G64: 0
A65: 13 | B65: 1,2,5,8,9,10,12,13 | F65: 0 | G65: 0
A66: 14 | B66: 1,2,5,8,9,10,11,12,13 | F66: 0 | G66: 0
A67: 15 | B67: 1,2,4,5,9,10,12,13 | F67: 1 | G67: 0.01
A68: 16 | B68: 1,2,4,5,9,10,11,12,13 | F68: 0 | G68: 0
A69: 17 | B69: 1,2,4,5,8,9,10,12,13 | F69: 1 | G69: 0.01
A70: 18 | B70: 1,2,4,5,8,9,10,11,12,13 | F70: 0 | G70: 0
A71: 19 | B71: 1,2,3,6,8,9,10,12,13 | F71: 0 | G71: 0
A72: 20 | B72: 1,2,3,6,8,9,10,11,12,13 | F72: 0 | G72: 0
A73: 21 | B73: 1,2,3,6,7,9,10,12,13 | F73: 0 | G73: 0
A74: 22 | B74: 1,2,3,6,7,9,10,11,12,13 | F74: 0 | G74: 0

Sheet Generátor náhčísel
A1: Generátor náhodných čísel z empirického rozdělení pravděpodobností diskrétní veličiny | L1: Generátor náhodných čísel z empirického rozdělení pravděpodobností spojité veličiny
A3: 1) Data | C3: 2) Minimum a maximum | L3: 1) Data | N3: 2) Minimum a maximum, volba počtu tříd, šířka třídy
A4: Položek v obj | C4: Min | D4: =MIN(A5:A504) -> 1 | L4: Kompletace [min/položka] | N4: Min | O4: =MIN(L5:L504) -> 0.6
A5: 1 | C5: Max | D5: =MAX(A5:A504) -> 3 | L5: 2 | N5: Max | O5: =MAX(L5:L504) -> 2.5
A6: 2 | L6: 1.3 | N6: Počet tříd | O6: 3
A7: 1 | L7: 2.5 | N7: Šířka třídy | O7: =(O5-O4)/O6 -> 0.6333333333
A8: 2 | C8: 3) Rozdělení pravděpodobností | L8: 1.6
A9: 2 | C9: Položek v obj | D9: Počet obj | E9: % | F9: sum % | L9: 2.3 | N9: 3) Rozdělení pravděpodobností
A10: 1 | C10: 1 | D10: =COUNTIF(A:A,C10) -> 230 | E10: =D10/SUM($D$10:$D$12) -> 0.46 | F10: =E10 -> 0.46 | L10: 1.6 | N10: Třída | O10: Dolní mez třídy | P10: Horní mez třídy | Q10: Střed třídy | R10: Hodnot | S10: % | T10: sum %
A11: 1 | C11: 2 | D11: =COUNTIF(A:A,C11) -> 165 | E11: =D11/SUM($D$10:$D$12) -> 0.33 | F11: =E11+F10 -> 0.79 | L11: 0.8 | N11: 1 | O11: =O4 -> 0.6 | P11: =O11+$O$7 -> 1.233333333 | Q11: =AVERAGE(O11:P11) -> 0.9166666667 | R11: =FREQUENCY(L:L,P11:P13) -> 166 | S11: =R11/SUM($R$11:$R$13) -> 0.332 | T11: =S11 -> 0.332
A12: 2 | C12: 3 | D12: =COUNTIF(A:A,C12) -> 105 | E12: =D12/SUM($D$10:$D$12) -> 0.21 | F12: =E12+F11 -> 1 | L12: 0.7 | N12: 2 | O12: =P11 -> 1.233333333 | P12: =O12+$O$7 -> 1.866666667 | Q12: =AVERAGE(O12:P12) -> 1.55 | R12: 151 | S12: =R12/SUM($R$11:$R$13) -> 0.302 | T12: =S12+T11 -> 0.634
A13: 1 | L13: 1.3 | N13: 3 | O13: =P12 -> 1.866666667 | P13: 2.5 | Q13: 2.183333333 | R13: 183 | S13: =R13/SUM($R$11:$R$13) -> 0.366 | T13: =S13+T12 -> 1
A14: 1 | C14: 4) Generátor | L14: 2.2
A15: 2 | C15: Náhčíslo | D15: Položek v obj | L15: 1.4 | N15: 4) Generátor
A16: 1 | C16: =RAND() -> 0.7223361665 | D16: =IF(C16<=F10,C10,IF(C16>F11,C12,C11)) -> 2 | L16: 1.8 | N16: Náhčíslo | O16: Kompletace [min/položka]
A17: 2 | L17: 2.1 | N17: =RAND() -> 0.6069773718 | O17: =IF(N17<=T11,Q11,IF(N17>T12,Q13,Q12)) -> 1.55
A18: 1 | L18: 2.3
A19: 2 | L19: 1.6
A20: 1 | L20: 1.6
A21: 1 | L21: 2.5
A22: 1 | L22: 1.5
A23: 1 | L23: 2.1
A24: 2 | L24: 2.4
A25: 1 | L25: 1.7
A26: 1 | L26: 0.7
A27: 1 | L27: 1.8
A28: 1 | L28: 1.2
A29: 1 | L29: 1.2
A30: 1 | L30: 1.2
A31: 1 | L31: 1.2
A32: 2 | L32: 1.8
A33: 1 | L33: 2.4
A34: 1 | L34: 1.4
A35: 2 | L35: 2.5
A36: 1 | L36: 2.4
A37: 1 | L37: 2.4
A38: 2 | L38: 0.8
A39: 2 | L39: 2.5
A40: 1 | L40: 2
A41: 2 | L41: 2.5
A42: 2 | L42: 0.6
A43: 1 | L43: 0.9
A44: 2 | L44: 1.2
A45: 1 | L45: 2
A46: 1 | L46: 1
A47: 1 | L47: 2.5
A48: 1 | L48: 0.8
A49: 1 | L49: 2.4
A50: 2 | L50: 2.1
A51: 2 | L51: 2.5
A52: 1 | L52: 1
A53: 1 | L53: 2.1
A54: 1 | L54: 0.8
A55: 1 | L55: 2.3
A56: 1 | L56: 0.6
A57: 1 | L57: 1
A58: 1 | L58: 0.7
A59: 1 | L59: 0.8
A60: 2 | L60: 1.5
A61: 2 | L61: 1.5
A62: 2 | L62: 2
A63: 1 | L63: 0.6
A64: 1 | L64: 2.3
A65: 1 | L65: 2.3
A66: 1 | L66: 2
A67: 1 | L67: 1.7
A68: 1 | L68: 1.9
A69: 2 | L69: 1.7
A70: 2 | L70: 1.4
A71: 1 | L71: 2
A72: 1 | L72: 0.9
A73: 2 | L73: 1
A74: 1 | L74: 2.1
A75: 1 | L75: 2.4
A76: 1 | L76: 1.7
A77: 1 | L77: 0.6
A78: 1 | L78: 2.2
A79: 2 | L79: 1.2
A80: 1 | L80: 1.2
A81: 1 | L81: 0.6
A82: 2 | L82: 2.3
A83: 2 | L83: 0.6
A84: 1 | L84: 1.9
A85: 1 | L85: 2
A86: 1 | L86: 1
A87: 2 | L87: 0.8
A88: 1 | L88: 1.6
A89: 1 | L89: 2.4
A90: 1 | L90: 1.6
A91: 2 | L91: 1.7
A92: 1 | L92: 2.1
A93: 2 | L93: 1.3
A94: 2 | L94: 1.5
A95: 1 | L95: 2.5
A96: 2 | L96: 1.6
A97: 1 | L97: 0.6
A98: 2 | L98: 1.7
A99: 1 | L99: 2.2
A100: 2 | L100: 2.1
A101: 1 | L101: 0.7
A102: 2 | L102: 1.7
A103: 2 | L103: 2.1
A104: 1 | L104: 2.3
A105: 1 | L105: 0.8
A106: 2 | L106: 2.5
A107: 2 | L107: 1.6
A108: 2 | L108: 1.5
A109: 1 | L109: 1.2
A110: 1 | L110: 1.8
A111: 2 | L111: 0.8
A112: 1 | L112: 1.1
A113: 1 | L113: 0.9
A114: 2 | L114: 1.6
A115: 1 | L115: 0.8
A116: 1 | L116: 0.9
A117: 2 | L117: 1.2
A118: 1 | L118: 2.5
A119: 2 | L119: 2.1
A120: 1 | L120: 2.3
A121: 2 | L121: 2.4
A122: 2 | L122: 2.1
A123: 1 | L123: 1.7
A124: 1 | L124: 1.5
A125: 1 | L125: 1.7
A126: 1 | L126: 1.1
A127: 1 | L127: 0.7
A128: 2 | L128: 0.9
A129: 2 | L129: 2.5
A130: 1 | L130: 2.3
A131: 1 | L131: 1.9
A132: 1 | L132: 2.4
A133: 1 | L133: 1.5
A134: 1 | L134: 0.6
A135: 1 | L135: 2.5
A136: 1 | L136: 1.6
A137: 1 | L137: 1.2
A138: 1 | L138: 2.3
A139: 1 | L139: 1.7
A140: 1 | L140: 1.7
A141: 1 | L141: 0.9
A142: 1 | L142: 0.7
A143: 1 | L143: 0.8
A144: 1 | L144: 2.2
A145: 2 | L145: 2.5
A146: 2 | L146: 1.7
A147: 1 | L147: 1.3
A148: 1 | L148: 1.2
A149: 1 | L149: 2.5
A150: 2 | L150: 2.2
A151: 1 | L151: 0.9
A152: 1 | L152: 1.5
A153: 1 | L153: 2.4
A154: 1 | L154: 0.9
A155: 1 | L155: 2
A156: 2 | L156: 1
A157: 2 | L157: 1.5
A158: 1 | L158: 1.7
A159: 1 | L159: 2.4
A160: 1 | L160: 0.9
A161: 2 | L161: 0.7
A162: 1 | L162: 1.4
A163: 1 | L163: 2.2
A164: 2 | L164: 2
A165: 1 | L165: 1.4
A166: 1 | L166: 1.6
A167: 1 | L167: 1.2
A168: 1 | L168: 1.2
A169: 1 | L169: 1.6
A170: 1 | L170: 0.6
A171: 1 | L171: 0.6
A172: 2 | L172: 0.8
A173: 1 | L173: 0.7
A174: 1 | L174: 2.3
A175: 1 | L175: 2.3
A176: 1 | L176: 2.5
A177: 1 | L177: 2.2
A178: 2 | L178: 1.2
A179: 1 | L179: 1.7
A180: 2 | L180: 0.6
A181: 1 | L181: 1.9
A182: 1 | L182: 2.3
A183: 1 | L183: 2
A184: 2 | L184: 1.4
A185: 2 | L185: 1.4
A186: 1 | L186: 2.5
A187: 1 | L187: 1.6
A188: 3 | L188: 2
A189: 1 | L189: 2.4
A190: 1 | L190: 1.3
A191: 1 | L191: 1.5
A192: 1 | L192: 2.4
A193: 2 | L193: 2
A194: 2 | L194: 2.5
A195: 3 | L195: 1.7
A196: 1 | L196: 0.8
A197: 2 | L197: 0.9
A198: 3 | L198: 0.9
A199: 2 | L199: 2.1
A200: 2 | L200: 2.4
A201: 3 | L201: 2.5
... 303 more rows
